fUSD/lending_fUSD_20260701
["ID","MTS","AMOUNT","RATE_DAILY","PERIOD"]
[426819702,1782894650000,-216.66345934,0.00023076,2]
[426819722,1782894650000,-349.49138619,0.00023424,2]
[426819705,1782894650000,-179.02461381,0.00023423,2]
[426819730,1782894650000,-181.02106912,0.00023424,2]
[426819708,1782894650000,-194.47486474,0.00023423,2]
[426819711,1782894650000,-162.40121117,0.00023423,2]
[426819710,1782894650000,-206.01586903,0.00023423,2]
[426819712,1782894650000,-177.41190988,0.00023423,2]
[426819724,1782894650000,-325.32515908,0.00023424,2]
[426819709,1782894650000,-174.61851461,0.00023423,2]
[426819727,1782894650000,-157.25665096,0.00023424,2]
[426819737,1782894650000,-570.83970735,0.00023449,2]
[426819732,1782894650000,-171.08204316,0.00023424,2]
[426819766,1782894650000,-1041.83756225,0.00024,2]
[426819765,1782894650000,-28.98284503,0.00023997,2]
[426819767,1782894650000,-335.819307,0.00024,2]
[426819763,1782894650000,-1261.69539882,0.00023997,2]
[426819762,1782894650000,-4161.79039347,0.000239,2]
[426819758,1782894650000,-151.0,0.00023449,2]
[426819756,1782894650000,-151.0,0.00023449,2]
[426819753,1782894650000,-151.0,0.00023449,2]
[426819759,1782894650000,-151.0,0.00023449,2]
[426819755,1782894650000,-151.0,0.00023449,2]
[426819731,1782894650000,-163.25714502,0.00023424,2]
[426819761,1782894650000,-200.0,0.00023766,2]
[426819757,1782894650000,-151.0,0.00023449,2]
[426819764,1782894650000,-195.76134211,0.00023997,2]
[426819754,1782894650000,-151.0,0.00023449,2]
[426819760,1782894650000,-1261.69539882,0.00023723,2]
[426819746,1782894650000,-151.0,0.00023449,2]
[426819736,1782894650000,-690.85569147,0.00023449,2]
[426819734,1782894650000,-174.22486157,0.00023424,2]
[426819748,1782894650000,-151.0,0.00023449,2]
[426819743,1782894650000,-69.23147686,0.00023449,2]
[426819752,1782894650000,-151.0,0.00023449,2]
[426819741,1782894650000,-151.0,0.00023449,2]
[426819733,1782894650000,-189.8466598,0.00023424,2]
[426819751,1782894650000,-151.0,0.00023449,2]
[426819745,1782894650000,-151.0,0.00023449,2]
[426819749,1782894650000,-151.0,0.00023449,2]
[426819747,1782894650000,-224.74418714,0.00023449,2]
[426819750,1782894650000,-151.0,0.00023449,2]
[426819744,1782894650000,-151.0,0.00023449,2]
[426819742,1782894650000,-81.76852314,0.00023449,2]
[426819768,1782894702000,1633.6,0.00030137,30]
[426819772,1782895270000,160.0,0.0002851,30]
[426819773,1782895522000,5000.0,0.0003,30]
[426819774,1782895740000,2000.0,0.00030136,30]
[426819777,1782895831000,-378.75583109,0.000165,2]
[426819775,1782895831000,-284.41308191,0.00016011,3]
[426819776,1782895831000,-57.87416891,0.000165,2]
[426819782,1782895832000,-150.0,0.00018004,2]
[426819783,1782895832000,-150.0,0.00018016,2]
[426819784,1782895832000,-151.0,0.00018064,2]
[426819779,1782895832000,-286.80516381,0.00017612,2]
[426819778,1782895832000,-1842.9001158,0.00017306,2]
[426819785,1782895832000,-13.8613369,0.00018255,2]
[426819781,1782895832000,-151.31,0.00018,2]
[426819792,1782895832000,-250.0,0.00019238,2]
[426819787,1782895832000,-216.66345934,0.00018828,2]
[426819790,1782895832000,-500.0,0.00019238,2]
[426819791,1782895832000,-207.20385672,0.00019238,2]
[426819780,1782895832000,-2213.19483619,0.00017612,2]
[426819788,1782895832000,-500.0,0.00019238,2]
[426819786,1782895832000,-137.1386631,0.00018255,2]
[426819789,1782895832000,-248.19132339,0.00019238,2]
[426819804,1782895840000,-1642.47710182,0.00019239,2]
[426819803,1782895840000,-935.0,0.00019239,2]
[426819801,1782895840000,-151.0,0.00019239,2]
[426819802,1782895840000,-151.0,0.00019239,2]
[426819800,1782895840000,-52.57577281,0.00019238,2]
[426819815,1782895841000,-360.42425931,0.00019239,2]
[426819812,1782895841000,-353.47176662,0.00019239,2]
[426819811,1782895841000,-322.51363009,0.00019239,2]
[426819805,1782895841000,-771.4019483,0.00019239,2]
[426819842,1782895843000,-200.71129386,0.00019239,2]
[426819843,1782895843000,-160.0,0.00020294,2]
[426819847,1782895843000,-1768.29154154,0.00022239,2]
[426819846,1782895843000,-935.0,0.00022239,2]
[426819845,1782895843000,-200.0,0.00021882,2]
[426819844,1782895843000,-152.0,0.00021037,3]
[426819856,1782895846000,-151.0,0.0002275,2]
[426819876,1782895846000,-279.81677286,0.00023422,2]
[426819877,1782895846000,-161.95766753,0.00023422,2]
[426819883,1782895846000,-161.9497096,0.00023423,2]
[426819866,1782895846000,-1642.16,0.00023157,2]
[426819879,1782895846000,-169.24700838,0.00023422,2]
[426819863,1782895846000,-1072.441089,0.00023024,2]
[426819862,1782895846000,-302.33470251,0.00023,2]
[426819860,1782895846000,-202.26976843,0.0002275,2]
[426819850,1782895846000,-968.79225636,0.00022397,2]
[426819858,1782895846000,-210.10196021,0.0002275,2]
[426819855,1782895846000,-151.0,0.0002275,2]
[426819854,1782895846000,-1072.441089,0.0002275,2]
[426819852,1782895846000,-1240.32,0.00022465,2]
[426819853,1782895846000,-200.0,0.00022622,2]
[426819851,1782895846000,-883.62774364,0.00022397,2]
[426819849,1782895846000,-1272.5997137,0.00022239,2]
[426819848,1782895846000,-610.10874476,0.00022239,2]
[426819864,1782895846000,-150.0,0.00023156,2]
[426819861,1782895846000,-5000.0,0.00022764,2]
[426819881,1782895846000,-184.42246952,0.00023422,2]
[426819872,1782895846000,-5378.1998742,0.00023318,2]
[426819874,1782895846000,-200.0,0.00023363,2]
[426819900,1782895846000,-163.22978586,0.00023423,2]
[426819898,1782895846000,-172.34299817,0.00023423,2]
[426819870,1782895846000,-202.26976843,0.00023298,2]
[426819901,1782895846000,-161.57396912,0.00023423,2]
[426819903,1782895846000,-168.15819711,0.00023423,2]
[426819899,1782895846000,-153.73981325,0.00023423,2]
[426819897,1782895846000,-218.36824664,0.00023423,2]
[426819894,1782895846000,-169.6294142,0.00023423,2]
[426819896,1782895846000,-171.08021368,0.00023423,2]
[426819895,1782895846000,-203.01927457,0.00023423,2]
[426819902,1782895846000,-205.41704657,0.00023423,2]
[426819888,1782895846000,-344.40787512,0.00023423,2]
[426819893,1782895846000,-187.06629846,0.00023423,2]
[426819885,1782895846000,-789.31967586,0.00023423,2]
[426819887,1782895846000,-176.42061943,0.00023423,2]
[426819886,1782895846000,-159.53904722,0.00023423,2]
[426819868,1782895846000,-1072.441089,0.00023298,2]
[426819890,1782895846000,-320.59315677,0.00023423,2]
[426819891,1782895846000,-253.43168387,0.00023423,2]
[426819892,1782895846000,-163.69520425,0.00023423,2]
[426819889,1782895846000,-301.68181415,0.00023423,2]
[426819912,1782895847000,-1072.441089,0.00023846,2]
[426819920,1782895847000,-200.0,0.00024103,2]
[426819914,1782895847000,-152.0,0.0002395,4]
[426819915,1782895847000,-32295.00099842,0.00024,2]
[426819922,1782895847000,-150.0,0.000242,2]
[426819911,1782895847000,-858.02816654,0.000237,2]
[426819916,1782895847000,-150.0,0.00024,2]
[426819910,1782895847000,-3574.0,0.00023613,3]
[426819908,1782895847000,-887.75,0.00023534,4]
[426819919,1782895847000,-150.0,0.000241,2]
[426819918,1782895847000,-160.0,0.0002408,3]
[426819909,1782895847000,-1072.441089,0.00023572,2]
[426819907,1782895847000,-177.80291678,0.00023423,2]
[426819906,1782895847000,-221.74364935,0.00023423,2]
[426819905,1782895847000,-157.03782521,0.00023423,2]
[426819904,1782895847000,-223.30444436,0.00023423,2]
[426819913,1782895847000,-202.26976843,0.00023846,2]
[426819921,1782895847000,-1072.441089,0.0002412,2]
[426819917,1782895847000,-263.80901857,0.00024036,2]
[426819925,1782895847000,-150.0,0.000243,2]
[426819939,1782895847000,-159.94,0.00024658,2]
[426819935,1782895847000,-1000.0,0.00024658,2]
[426819937,1782895847000,-151.0,0.00024658,2]
[426819936,1782895847000,-228.255169,0.00024658,2]
[426819938,1782895847000,-170.61,0.00024658,2]
[426819941,1782895847000,-29137.10056584,0.00024666,2]
[426819940,1782895847000,-151.0,0.00024666,2]
[426819934,1782895847000,-287.238633,0.00024658,2]
[426819933,1782895847000,-873.3,0.00024658,2]
[426819932,1782895847000,-1000.0,0.00024657,2]
[426819931,1782895847000,-5361.0,0.00024558,3]
[426819926,1782895847000,-151.0,0.00024324,2]
[426819927,1782895847000,-15113.61180934,0.00024333,2]
[426819929,1782895847000,-202.26976843,0.00024394,2]
[426819923,1782895847000,-10854.76323894,0.0002429,7]
[426819924,1782895847000,-216.66345934,0.0002429,7]
[426819930,1782895847000,-5580.0,0.00024463,7]
[426819928,1782895847000,-1072.441089,0.00024394,2]
[426819942,1782895867000,303.36390796,0.00021163,30]
[426819943,1782895978000,7064.45,0.00029717,30]
[426819946,1782896144000,4166.81,0.00030137,30]
[426819950,1782896555000,1000.0,0.0003013,30]
[426819951,1782896579000,1000.0,0.0003013,30]
[426819952,1782896606000,1000.0,0.0003013,30]
[426819953,1782896623000,1000.0,0.0003013,30]
[426819954,1782896669000,1000.0,0.0003013,30]
[426819955,1782896917000,894.04,0.0003,30]
[426819956,1782896940000,2000.0,0.00030136,30]
[426819957,1782896969000,50000.0,0.00030137,34]
[426819960,1782896984000,1787.01,0.000295,30]
[426819961,1782896993000,1787.01,0.000298,30]
[426819964,1782897033000,-2737.40596367,0.0001499,2]
[426819972,1782897033000,-500.0,0.00014994,2]
[426819967,1782897033000,-150.0,0.00014993,2]
[426819968,1782897033000,-500.0,0.00014994,2]
[426819969,1782897033000,-500.0,0.00014994,2]
[426819971,1782897033000,-500.0,0.00014994,2]
[426819965,1782897033000,-1151.55355255,0.0001499,2]
[426819973,1782897033000,-461.53226863,0.00014994,2]
[426819966,1782897033000,-43.0649877,0.0001499,2]
[426819974,1782897033000,-500.0,0.00014994,2]
[426819981,1782897033000,-12397.81860244,0.00015,2]
[426819977,1782897033000,-500.0,0.00014994,2]
[426819980,1782897033000,-598.65033095,0.00015,2]
[426819970,1782897033000,-500.0,0.00014994,2]
[426819976,1782897033000,-500.0,0.00014994,2]
[426819975,1782897033000,-500.0,0.00014994,2]
[426819978,1782897033000,-14578.10906602,0.00015,2]
[426819979,1782897033000,-964.79536311,0.00015,2]
[426820002,1782897038000,-8732.7725663,0.00015,2]
[426820011,1782897040000,-11793.68619809,0.00015,2]
[426820010,1782897040000,-20498.95208718,0.00015,2]
[426820008,1782897040000,-387.88993879,0.00015,2]
[426820009,1782897040000,-1138.2686604,0.00015,2]
[426820032,1782897042000,-1411.79630058,0.00015,2]
[426820034,1782897042000,-1341.69873981,0.00015,2]
[426820045,1782897043000,-3713.91495961,0.00015,2]
[426820049,1782897044000,-330.1742672,0.00015,2]
[426820047,1782897044000,-1671.36441704,0.00015,2]
[426820048,1782897044000,-3310.44,0.00015,2]
[426820059,1782897046000,-1813.59,0.00015,2]
[426820058,1782897046000,-5879.6,0.00015,2]
[426820056,1782897046000,-2747.87637908,0.00015,2]
[426820057,1782897046000,-1603.32,0.00015,2]
[426820073,1782897868000,100000.0,0.00030137,30]
[426820074,1782897872000,100000.0,0.00030137,30]
[426820075,1782897880000,100000.0,0.00030137,30]
[426820076,1782897895000,977.29,0.0002972,30]
[426820077,1782897901000,28569.53,0.00030137,30]
[426820078,1782897906000,7117.97,0.00029865,30]
[426820080,1782898140000,2000.0,0.00030136,30]
[426820096,1782898232000,-192.92630882,0.00014992,2]
[426820093,1782898232000,-150.0,0.00014991,2]
[426820097,1782898232000,-500.0,0.00014992,2]
[426820098,1782898232000,-500.0,0.00014992,2]
[426820094,1782898232000,-267.13637568,0.00014992,2]
[426820099,1782898232000,-262.13886603,0.00014992,2]
[426820101,1782898232000,-156.12387983,0.00014992,2]
[426820100,1782898232000,-572.53956645,0.00014992,2]
[426820095,1782898232000,-270.34662158,0.00014992,2]
[426820130,1782898238000,-500.0,0.00014992,2]
[426820124,1782898238000,-500.0,0.00014992,2]
[426820127,1782898238000,-500.0,0.00014992,2]
[426820126,1782898238000,-500.0,0.00014992,2]
[426820128,1782898238000,-500.0,0.00014992,2]
[426820133,1782898238000,-500.0,0.00014992,2]
[426820129,1782898238000,-500.0,0.00014992,2]
[426820138,1782898238000,-500.0,0.00014992,2]
[426820136,1782898238000,-500.0,0.00014992,2]
[426820135,1782898238000,-264.65696138,0.00014992,2]
[426820137,1782898238000,-500.0,0.00014992,2]
[426820125,1782898238000,-514.51212046,0.00014992,2]
[426820123,1782898238000,-354.7942159,0.00014992,2]
[426820139,1782898238000,-500.0,0.00014992,2]
[426820131,1782898238000,-500.0,0.00014992,2]
[426820132,1782898238000,-500.0,0.00014992,2]
[426820122,1782898238000,-500.0,0.00014992,2]
[426820118,1782898238000,-500.0,0.00014992,2]
[426820117,1782898238000,-392.70530956,0.00014992,2]
[426820119,1782898238000,-500.0,0.00014992,2]
[426820116,1782898238000,-500.0,0.00014992,2]
[426820114,1782898238000,-500.18370509,0.00014992,2]
[426820115,1782898238000,-500.0,0.00014992,2]
[426820113,1782898238000,-500.0,0.00014992,2]
[426820111,1782898238000,-73.73046285,0.00014992,2]
[426820112,1782898238000,-500.0,0.00014992,2]
[426820121,1782898238000,-500.0,0.00014992,2]
[426820140,1782898238000,-500.0,0.00014992,2]
[426820120,1782898238000,-522.92061858,0.00014992,2]
[426820141,1782898238000,-500.0,0.00014992,2]
[426820183,1782898238000,-500.0,0.00014992,2]
[426820186,1782898238000,-500.0,0.00014992,2]
[426820190,1782898238000,-500.0,0.00014992,2]
[426820188,1782898238000,-500.0,0.00014992,2]
[426820184,1782898238000,-500.0,0.00014992,2]
[426820173,1782898238000,-500.0,0.00014992,2]
[426820176,1782898238000,-500.0,0.00014992,2]
[426820180,1782898238000,-500.0,0.00014992,2]
[426820171,1782898238000,-500.0,0.00014992,2]
[426820169,1782898238000,-500.0,0.00014992,2]
[426820177,1782898238000,-500.0,0.00014992,2]
[426820161,1782898238000,-500.0,0.00014992,2]
[426820166,1782898238000,-500.0,0.00014992,2]
[426820164,1782898238000,-500.0,0.00014992,2]
[426820143,1782898238000,-500.0,0.00014992,2]
[426820157,1782898238000,-500.0,0.00014992,2]
[426820134,1782898238000,-500.0,0.00014992,2]
[426820142,1782898238000,-500.0,0.00014992,2]
[426820155,1782898238000,-259.74345901,0.00014992,2]
[426820145,1782898238000,-500.0,0.00014992,2]
[426820144,1782898238000,-384.16810767,0.00014992,2]
[426820147,1782898238000,-500.0,0.00014992,2]
[426820159,1782898238000,-500.0,0.00014992,2]
[426820152,1782898238000,-500.0,0.00014992,2]
[426820146,1782898238000,-500.0,0.00014992,2]
[426820149,1782898238000,-200.0,0.00014992,2]
[426820151,1782898238000,-500.0,0.00014992,2]
[426820150,1782898238000,-500.0,0.00014992,2]
[426820148,1782898238000,-500.0,0.00014992,2]
[426820229,1782898239000,-500.0,0.00014992,2]
[426820216,1782898239000,-500.0,0.00014992,2]
[426820212,1782898239000,-494.26683171,0.00014992,2]
[426820209,1782898239000,-5.73316829,0.00014992,2]
[426820207,1782898239000,-500.0,0.00014992,2]
[426820201,1782898239000,-500.0,0.00014992,2]
[426820199,1782898239000,-500.0,0.00014992,2]
[426820195,1782898239000,-500.0,0.00014992,2]
[426820203,1782898239000,-500.09208638,0.00014992,2]
[426820192,1782898239000,-500.0,0.00014992,2]
[426820227,1782898239000,-500.0,0.00014992,2]
[426820205,1782898239000,-500.0,0.00014992,2]
[426820218,1782898239000,-500.0,0.00014992,2]
[426820197,1782898239000,-500.0,0.00014992,2]
[426820220,1782898239000,-500.0,0.00014992,2]
[426820242,1782898239000,-500.0,0.00014992,2]
[426820246,1782898239000,-500.0,0.00014992,2]
[426820240,1782898239000,-500.0,0.00014992,2]
[426820231,1782898239000,-500.0,0.00014992,2]
[426820253,1782898239000,-352.67180986,0.00014992,2]
[426820244,1782898239000,-500.0,0.00014992,2]
[426820250,1782898239000,-500.0,0.00014992,2]
[426820248,1782898239000,-500.0,0.00014992,2]
[426820236,1782898239000,-387.69113103,0.00014992,2]
[426820234,1782898239000,-500.0,0.00014992,2]
[426820238,1782898239000,-500.0,0.00014992,2]
[426820223,1782898239000,-500.0,0.00014992,2]
[426820225,1782898239000,-500.0,0.00014992,2]
[426820214,1782898239000,-500.0,0.00014992,2]
[426820281,1782898240000,-147.32819014,0.00014992,2]
[426820283,1782898240000,-300.0,0.00014994,2]
[426820284,1782898240000,-600.0,0.00014994,2]
[426820286,1782898240000,-161.34272378,0.00014994,2]
[426820282,1782898240000,-150.0,0.00014993,2]
[426820285,1782898240000,-500.0,0.00014994,2]
[426820308,1782898243000,-250.0,0.00014994,2]
[426820307,1782898243000,-38.65727622,0.00014994,2]
[426820309,1782898243000,-200.0,0.00014994,2]
[426820311,1782898243000,-300.0,0.00014995,2]
[426820312,1782898243000,-298.40043448,0.00014995,2]
[426820310,1782898243000,-269.27273895,0.00014994,2]
[426820315,1782898243000,-16.86043448,0.00014995,2]
[426820314,1782898243000,-300.0,0.00014995,2]
[426820316,1782898243000,-583.13956552,0.00014995,2]
[426820313,1782898243000,-1.59956552,0.00014995,2]
[426820320,1782898243000,-1000.0,0.00014995,2]
[426820318,1782898243000,-1000.0,0.00014995,2]
[426820319,1782898243000,-1000.0,0.00014995,2]
[426820322,1782898243000,-534.24249197,0.00014995,2]
[426820321,1782898243000,-87.80419957,0.00014995,2]
[426820317,1782898243000,-1000.0,0.00014995,2]
[426820330,1782898246000,-1000.0,0.00014995,2]
[426820334,1782898246000,-385.90158117,0.00014995,2]
[426820331,1782898246000,-986.67287408,0.00014995,2]
[426820329,1782898246000,-1000.0,0.00014995,2]
[426820332,1782898246000,-13.32712592,0.00014995,2]
[426820333,1782898246000,-264.69633849,0.00014995,2]
[426820328,1782898246000,-377.95330846,0.00014995,2]
[426820338,1782898283000,1787.01,0.0003,30]
[426820339,1782898331000,1000.0,0.00030137,30]
[426820340,1782898340000,1000.0,0.00030137,30]
[426820341,1782898346000,1000.0,0.00030137,30]
[426820342,1782898359000,1600.0,0.00030137,30]
[426820344,1782898374000,199.0505537,0.00030133,30]
[426820345,1782898421000,180.69,0.00029232,30]
[426820346,1782898422000,162.61,0.00027397,30]
[426820347,1782898482000,154.25150621,0.00030131,30]
[426820348,1782898485000,205.66867495,0.00030131,30]
[426820349,1782898498000,150.75,0.00029031,30]
[426820350,1782898500000,150.75,0.00026849,30]
[426820351,1782898512000,718.01,0.00029751,30]
[426820352,1782898885000,168.53,0.0002882,120]
[426820353,1782898963000,191.80985808,0.0003013,30]
[426820354,1782899037000,436.95,0.0003,30]
[426820355,1782899069000,410.54,0.000301,30]
[426820356,1782899087000,500.01,0.000301,30]
[426820359,1782899296000,50000.0,0.00030137,35]
[426820360,1782899299000,50000.0,0.00030137,36]
[426820361,1782899306000,50000.0,0.00030137,37]
[426820362,1782899309000,50000.0,0.00030137,38]
[426820368,1782899323000,50000.0,0.00030137,39]
[426820369,1782899327000,50000.0,0.00030137,40]
[426820371,1782899340000,2000.0,0.00030136,30]
[426820374,1782899341000,2000.0,0.00030136,37]
[426820373,1782899341000,2000.0,0.00030136,36]
[426820372,1782899341000,2000.0,0.00030136,35]
[426820376,1782899342000,2000.0,0.00030136,39]
[426820375,1782899342000,2000.0,0.00030136,38]
[426820378,1782899342000,2000.0,0.00030136,40]
[426820379,1782899342000,2000.0,0.00028819,120]
[426820377,1782899342000,10075.90019615,0.0003,120]
[426820401,1782899432000,-150.0,0.00014992,2]
[426820400,1782899432000,-250.0,0.00014616,2]
[426820397,1782899432000,-193.57369918,0.00014616,2]
[426820402,1782899432000,-868.1315673,0.00014994,2]
[426820394,1782899432000,-76.16811776,0.00013422,2]
[426820399,1782899432000,-300.0,0.00014616,2]
[426820395,1782899432000,-170.068107,0.00014287,2]
[426820403,1782899432000,-6368.3593687,0.00014994,2]
[426820396,1782899432000,-160.77850876,0.00014516,2]
[426820398,1782899432000,-200.0,0.00014616,2]
[426820392,1782899432000,-549.79706108,0.00013287,2]
[426820405,1782899432000,-1000.0,0.00014995,2]
[426820393,1782899432000,-73.83188224,0.00013422,2]
[426820407,1782899432000,-214.71742715,0.00014995,2]
[426820413,1782899432000,-261.62471684,0.00016116,2]
[426820412,1782899432000,-957.90528316,0.00016116,2]
[426820418,1782899432000,-393.0,0.00017331,2]
[426820420,1782899432000,-7410.81132468,0.0001756,2]
[426820417,1782899432000,-2337.0,0.00016503,2]
[426820415,1782899432000,-221.36,0.000165,2]
[426820404,1782899432000,-349.40208034,0.00014995,2]
[426820416,1782899432000,-651.82,0.000165,2]
[426820421,1782899432000,-1254.41808677,0.0001756,2]
[426820414,1782899432000,-9179.3,0.00016116,2]
[426820408,1782899432000,-9959.71924898,0.00015,2]
[426820410,1782899432000,-12.90528316,0.00016116,2]
[426820406,1782899432000,-1000.0,0.00014995,2]
[426820411,1782899432000,-242.09471684,0.00016116,2]
[426820409,1782899432000,-3576.54719587,0.00015,2]
[426820419,1782899432000,-364.71414634,0.00017557,2]
[426820430,1782899438000,-837.905384,0.0001756,2]
[426820432,1782899438000,-7679.14639526,0.0001756,2]
[426820431,1782899438000,-1273.25141079,0.0001756,2]
[426820433,1782899438000,-4086.3909305,0.0001756,2]
[426820435,1782899438000,-586.54,0.00017645,2]
[426820434,1782899438000,-541.55,0.00017645,2]
[426820436,1782899438000,-724.59382976,0.000181,2]
[426820443,1782899438000,-6284.16739191,0.0001872,2]
[426820437,1782899438000,-724.59382976,0.000183,2]
[426820440,1782899438000,-724.59382976,0.000186,2]
[426820438,1782899438000,-160.0,0.00018364,2]
[426820448,1782899440000,-2813.07912182,0.0001872,2]
[426820464,1782899443000,-1203.35736166,0.0001872,2]
[426820463,1782899443000,-1671.13015228,0.0001872,2]
[426820473,1782899446000,-1303.78391424,0.0001872,2]
[426820471,1782899446000,-86.25914062,0.0001872,2]
[426820472,1782899446000,-362.87,0.0001872,2]
[426820496,1782899569000,150.41365158,0.00030131,30]
[426820497,1782899621000,171.94,0.00028907,120]
[426820498,1782899708000,9401.2793,0.00022257,120]
[426820499,1782899769000,6524.81,0.00029916,30]
[426820502,1782899925000,826.0,0.00030137,30]
[426820503,1782900003000,300.0,0.00017994,30]
[426820504,1782900095000,5981.07,0.00029859,30]
[426820507,1782900182000,156.3828891,0.00030131,30]
[426820510,1782900398000,171.94,0.00029743,120]
[426820511,1782900472000,963.609099,0.00030134,120]
[426820513,1782900540000,2000.0,0.00030135,35]
[426820512,1782900540000,2000.0,0.00030136,30]
[426820514,1782900541000,2000.0,0.00030135,36]
[426820516,1782900541000,2000.0,0.00030135,38]
[426820515,1782900541000,2000.0,0.00030135,37]
[426820519,1782900542000,2000.0,0.00030133,120]
[426820518,1782900542000,2000.0,0.00030135,40]
[426820517,1782900542000,2000.0,0.00030135,39]
[426820533,1782900631000,-163.89,0.00016434,2]
[426820546,1782900631000,-500.0,0.00017644,2]
[426820548,1782900631000,-500.0,0.00017644,2]
[426820534,1782900631000,-160.0,0.00016587,2]
[426820543,1782900631000,-500.0,0.00017644,2]
[426820530,1782900631000,-250.0,0.00015393,2]
[426820531,1782900631000,-500.0,0.00015393,2]
[426820532,1782900631000,-375.71207082,0.00015569,2]
[426820528,1782900631000,-756.33992496,0.00014287,2]
[426820526,1782900631000,-150.0,0.00014133,2]
[426820525,1782900631000,-138.72099557,0.00013994,2]
[426820527,1782900631000,-207.27917404,0.00014287,2]
[426820522,1782900631000,-250.0,0.00013994,2]
[426820524,1782900631000,-271.56582339,0.00013994,2]
[426820523,1782900631000,-189.71318104,0.00013994,2]
[426820520,1782900631000,-184.06664774,0.00013994,2]
[426820521,1782900631000,-150.0,0.00013994,2]
[426820537,1782900631000,-1974.9630505,0.00016905,2]
[426820529,1782900631000,-600.0,0.00015393,2]
[426820541,1782900631000,-500.0,0.00017644,2]
[426820556,1782900631000,-500.0,0.00017644,2]
[426820536,1782900631000,-3956.9209181,0.00016905,2]
[426820539,1782900631000,-500.0,0.00017644,2]
[426820584,1782900631000,-500.0,0.00017644,2]
[426820580,1782900631000,-500.0,0.00017644,2]
[426820582,1782900631000,-500.0,0.00017644,2]
[426820574,1782900631000,-500.0,0.00017644,2]
[426820576,1782900631000,-500.0,0.00017644,2]
[426820572,1782900631000,-500.0,0.00017644,2]
[426820568,1782900631000,-500.0,0.00017644,2]
[426820563,1782900631000,-500.0,0.00017644,2]
[426820578,1782900631000,-500.0,0.00017644,2]
[426820561,1782900631000,-500.0,0.00017644,2]
[426820565,1782900631000,-500.0,0.00017644,2]
[426820558,1782900631000,-500.0,0.00017644,2]
[426820554,1782900631000,-500.0,0.00017644,2]
[426820586,1782900631000,-500.0,0.00017644,2]
[426820552,1782900631000,-500.0,0.00017644,2]
[426820550,1782900631000,-500.0,0.00017644,2]
[426820535,1782900631000,-2054.31,0.00016587,2]
[426820538,1782900631000,-2383.7280428,0.00016905,2]
[426820570,1782900631000,-500.0,0.00017644,2]
[426820643,1782900632000,-202.60270696,0.00018999,2]
[426820639,1782900632000,-181.14845744,0.000185,2]
[426820636,1782900632000,-181.14845744,0.000183,2]
[426820635,1782900632000,-151.0,0.00018297,2]
[426820637,1782900632000,-8169.97695684,0.000183,2]
[426820640,1782900632000,-181.14845744,0.000186,2]
[426820638,1782900632000,-1358.3947167,0.000183,2]
[426820634,1782900632000,-250.0,0.0001815,2]
[426820644,1782900632000,-500.0,0.00018999,2]
[426820641,1782900632000,-8272.6,0.00018959,2]
[426820642,1782900632000,-199.5,0.00018994,2]
[426820655,1782900632000,-154.77411264,0.00019269,2]
[426820647,1782900632000,-273.45950423,0.00018999,2]
[426820646,1782900632000,-500.0,0.00018999,2]
[426820648,1782900632000,-500.0,0.00018999,2]
[426820649,1782900632000,-432.53881913,0.00018999,2]
[426820652,1782900632000,-8169.97695684,0.00019,2]
[426820651,1782900632000,-252.62525864,0.00018999,2]